[Event "Late-Titled-Tuesday-Blitz-April-16-2024"]
[Site "Chess.com"]
[Date "2024.04.16"]
[Round "10"]
[White "ritanovikova"]
[Black "PapaieDudu"]
[Result "1/2-1/2"]
[WhiteElo "2181"]
[BlackElo "2318"]
[TimeControl "180+1"]
[EndTime "15:53:49 PDT"]
[Termination "Game drawn by agreement"]

1. e4 {[%clk 0:02:58.1]} 1... c5 {[%clk 0:03:00.4]} 2. Nc3 {[%clk 0:02:57.6]}
2... a6 {[%clk 0:03:00.5]} 3. d3 {[%clk 0:02:57.2]} 3... e6 {[%clk 0:03:00.5]}
4. g3 {[%clk 0:02:56.2]} 4... d5 {[%clk 0:03:01.4]} 5. exd5 {[%clk 0:02:56.1]}
5... exd5 {[%clk 0:03:02.3]} 6. Bg2 {[%clk 0:02:51.9]} 6... Nf6 {[%clk
0:03:02.9]} 7. Nge2 {[%clk 0:02:49.1]} 7... Be7 {[%clk 0:03:03.5]} 8. Nf4 {[%clk
0:02:48.1]} 8... Be6 {[%clk 0:02:58.2]} 9. O-O {[%clk 0:02:47]} 9... O-O {[%clk
0:02:57.8]} 10. Re1 {[%clk 0:02:45.8]} 10... d4 {[%clk 0:02:35]} 11. Ne4 {[%clk
0:02:41]} 11... Nxe4 {[%clk 0:02:08.8]} 12. Bxe4 {[%clk 0:02:38.6]} 12... Bc8
{[%clk 0:02:07.5]} 13. Bg2 {[%clk 0:02:17.9]} 13... Nc6 {[%clk 0:02:00.7]} 14.
Nd5 {[%clk 0:02:13.8]} 14... Bd6 {[%clk 0:01:58.3]} 15. Bf4 {[%clk 0:02:09]}
15... Be6 {[%clk 0:01:58.7]} 16. Bxd6 {[%clk 0:02:07.8]} 16... Qxd6 {[%clk
0:01:59.4]} 17. Nf4 {[%clk 0:02:08.2]} 17... Bd7 {[%clk 0:01:56.2]} 18. Qh5
{[%clk 0:02:06]} 18... Rae8 {[%clk 0:01:52.3]} 19. Qd5 {[%clk 0:02:03.5]} 19...
Qxd5 {[%clk 0:01:36]} 20. Nxd5 {[%clk 0:02:03.1]} 20... Ne5 {[%clk 0:01:29.4]}
21. Kf1 {[%clk 0:01:54.8]} 21... Bc6 {[%clk 0:01:26.6]} 22. Nf4 {[%clk
0:01:52.7]} 22... Nf3 {[%clk 0:01:23.8]} 23. Bxf3 {[%clk 0:01:51.6]} 23... Bxf3
{[%clk 0:01:24.2]} 24. Rxe8 {[%clk 0:01:51.1]} 24... Rxe8 {[%clk 0:01:25.1]} 25.
Re1 {[%clk 0:01:50.5]} 25... Rc8 {[%clk 0:01:14.9]} 26. b3 {[%clk 0:01:49]}
26... Kf8 {[%clk 0:01:12.7]} 27. a4 {[%clk 0:01:46]} 27... b5 {[%clk 0:01:11.1]}
28. axb5 {[%clk 0:01:45.8]} 28... axb5 {[%clk 0:01:12]} 29. Ra1 {[%clk
0:01:45.8]} 29... g5 {[%clk 0:01:08.8]} 30. Ne2 {[%clk 0:01:43.8]} 30... Re8
{[%clk 0:01:06.8]} 31. Ng1 {[%clk 0:01:37]} 31... Bg4 {[%clk 0:01:04.8]} 32. f3
{[%clk 0:01:35.2]} 32... Bf5 {[%clk 0:00:58.3]} 33. Kf2 {[%clk 0:01:34.7]} 33...
c4 {[%clk 0:00:57.4]} 34. bxc4 {[%clk 0:01:33]} 34... bxc4 {[%clk 0:00:58.1]}
35. Ne2 {[%clk 0:01:30.8]} 35... Rd8 {[%clk 0:00:49.8]} 36. Ra4 {[%clk
0:01:29.3]} 36... cxd3 {[%clk 0:00:46.6]} 37. cxd3 {[%clk 0:01:28.2]} 37... Bxd3
{[%clk 0:00:41]} 38. Rxd4 {[%clk 0:01:27.2]} 38... Rxd4 {[%clk 0:00:40.4]} 39.
Nxd4 {[%clk 0:01:28.1]} 39... Bg6 {[%clk 0:00:40.5]} 40. Ke3 {[%clk 0:01:27.8]}
40... Kg7 {[%clk 0:00:36]} 41. f4 {[%clk 0:01:27.5]} 41... gxf4+ {[%clk
0:00:34.3]} 42. Kxf4 {[%clk 0:01:26.7]} 42... f6 {[%clk 0:00:33.9]} 43. Nf5+
{[%clk 0:01:25.6]} 43... Kf8 {[%clk 0:00:31]} 44. h4 {[%clk 0:01:25]} 44... Be8
{[%clk 0:00:28.7]} 45. g4 {[%clk 0:01:24.6]} 45... Bf7 {[%clk 0:00:28.5]} 46. g5
{[%clk 0:01:24.7]} 46... fxg5+ {[%clk 0:00:28.3]} 47. Kxg5 {[%clk 0:01:23.7]}
47... Bg6 {[%clk 0:00:28.9]} 48. Ng3 {[%clk 0:01:21.8]} 48... Kg7 {[%clk
0:00:28.4]} 49. h5 {[%clk 0:01:20.9]} 49... h6+ {[%clk 0:00:25.1]} 50. Kg4
{[%clk 0:01:20]} 50... Bxh5+ {[%clk 0:00:24.8]} 51. Nxh5+ {[%clk 0:01:19.6]}
51... Kf8 {[%clk 0:00:23.5]} 1/2-1/2

[Event "Late-Titled-Tuesday-Blitz-April-16-2024"]
[Site "Chess.com"]
[Date "2024.04.16"]
[Round "10"]
[White "Boorchess"]
[Black "picturesquecheck"]
[Result "0-1"]
[WhiteElo "2481"]
[BlackElo "2413"]
[TimeControl "180+1"]
[EndTime "15:53:51 PDT"]
[Termination "picturesquecheck won on time"]

1. d4 {[%clk 0:03:00.9]} 1... d6 {[%clk 0:02:59.5]} 2. Nf3 {[%clk 0:03:00.3]}
2... Nf6 {[%clk 0:02:59.8]} 3. Bg5 {[%clk 0:02:59]} 3... Ne4 {[%clk 0:02:58.4]}
4. Bf4 {[%clk 0:02:58.9]} 4... g6 {[%clk 0:02:58.7]} 5. e3 {[%clk 0:02:58.2]}
5... Bg7 {[%clk 0:02:58.4]} 6. Bd3 {[%clk 0:02:57.9]} 6... Nf6 {[%clk
0:02:57.2]} 7. h3 {[%clk 0:02:58.1]} 7... O-O {[%clk 0:02:55]} 8. O-O {[%clk
0:02:58.1]} 8... Nbd7 {[%clk 0:02:52.7]} 9. Bh2 {[%clk 0:02:53.3]} 9... c5
{[%clk 0:02:52.9]} 10. c3 {[%clk 0:02:52]} 10... b6 {[%clk 0:02:52.3]} 11. Nbd2
{[%clk 0:02:50.3]} 11... Bb7 {[%clk 0:02:52.3]} 12. Qe2 {[%clk 0:02:49]} 12...
Re8 {[%clk 0:02:49]} 13. Rfd1 {[%clk 0:02:45.7]} 13... e5 {[%clk 0:02:48.6]} 14.
dxe5 {[%clk 0:02:45.4]} 14... Nxe5 {[%clk 0:02:44.9]} 15. Bb5 {[%clk 0:02:38.4]}
15... Re7 {[%clk 0:02:22]} 16. Nxe5 {[%clk 0:02:04.9]} 16... dxe5 {[%clk
0:02:22.9]} 17. Ne4 {[%clk 0:01:38.5]} 17... Qc7 {[%clk 0:02:12.3]} 18. Nd6
{[%clk 0:01:32.4]} 18... a6 {[%clk 0:01:56.5]} 19. Bc4 {[%clk 0:01:17.8]} 19...
b5 {[%clk 0:01:53.7]} 20. Nxb7 {[%clk 0:01:08.6]} 20... Qxb7 {[%clk 0:01:44.6]}
21. Bb3 {[%clk 0:01:06.9]} 21... c4 {[%clk 0:01:32.4]} 22. Bc2 {[%clk
0:01:06.4]} 22... e4 {[%clk 0:01:31.7]} 23. a4 {[%clk 0:01:02.1]} 23... Rc8
{[%clk 0:01:26.1]} 24. axb5 {[%clk 0:01:01.3]} 24... axb5 {[%clk 0:01:27]} 25.
Rd2 {[%clk 0:00:36.4]} 25... b4 {[%clk 0:01:20.2]} 26. Bd6 {[%clk 0:00:28.1]}
26... bxc3 {[%clk 0:01:15.7]} 27. bxc3 {[%clk 0:00:28.1]} 27... Re6 {[%clk
0:01:14.5]} 28. Ba4 {[%clk 0:00:21.4]} 28... Nd5 {[%clk 0:01:02.2]} 29. Rb2
{[%clk 0:00:12.4]} 29... Qa7 {[%clk 0:00:58.4]} 30. Qf1 {[%clk 0:00:03.2]} 30...
Ra8 {[%clk 0:00:35.7]} 0-1

[Event "Late-Titled-Tuesday-Blitz-April-16-2024"]
[Site "Chess.com"]
[Date "2024.04.16"]
[Round "10"]
[White "Hikaru"]
[Black "Firouzja2003"]
[Result "1/2-1/2"]
[WhiteElo "3287"]
[BlackElo "3052"]
[TimeControl "180+1"]
[EndTime "15:53:53 PDT"]
[Termination "Game drawn by agreement"]

1. e4 {[%clk 0:03:00.9]} 1... c6 {[%clk 0:02:59.8]} 2. Nf3 {[%clk 0:02:58.9]}
2... d5 {[%clk 0:03:00.1]} 3. Nc3 {[%clk 0:02:59.8]} 3... dxe4 {[%clk 0:03:00]}
4. Nxe4 {[%clk 0:03:00.2]} 4... Nf6 {[%clk 0:03:00.1]} 5. Qe2 {[%clk 0:03:00.8]}
5... Bf5 {[%clk 0:02:59]} 6. d3 {[%clk 0:02:58.4]} 6... e6 {[%clk 0:02:57.1]} 7.
g3 {[%clk 0:02:58.4]} 7... Nbd7 {[%clk 0:02:57]} 8. Bg2 {[%clk 0:02:58.4]} 8...
Be7 {[%clk 0:02:55.8]} 9. O-O {[%clk 0:02:53.9]} 9... O-O {[%clk 0:02:56.2]} 10.
Re1 {[%clk 0:02:53.8]} 10... a5 {[%clk 0:02:55.4]} 11. a4 {[%clk 0:02:50]} 11...
h6 {[%clk 0:02:52]} 12. Ned2 {[%clk 0:02:39.8]} 12... Re8 {[%clk 0:02:39.7]} 13.
Nc4 {[%clk 0:02:38.5]} 13... Bf8 {[%clk 0:02:18.3]} 14. Nfe5 {[%clk 0:02:31.9]}
14... Nxe5 {[%clk 0:02:18.4]} 15. Nxe5 {[%clk 0:02:31.8]} 15... Nd7 {[%clk
0:02:19.1]} 16. Nxd7 {[%clk 0:02:31]} 16... Qxd7 {[%clk 0:02:20]} 17. Be4 {[%clk
0:02:28.4]} 17... e5 {[%clk 0:02:18.9]} 18. Bxf5 {[%clk 0:02:27.7]} 18... Qxf5
{[%clk 0:02:19.8]} 19. Qe4 {[%clk 0:02:24.4]} 19... Qd7 {[%clk 0:02:18.7]} 20.
Bd2 {[%clk 0:02:21.9]} 20... f5 {[%clk 0:02:17.1]} 21. Qc4+ {[%clk 0:02:21.6]}
21... Qd5 {[%clk 0:02:17.2]} 22. b3 {[%clk 0:02:07.3]} 22... Bb4 {[%clk
0:02:16.9]} 23. Bxb4 {[%clk 0:01:59.2]} 23... Qxc4 {[%clk 0:02:16.3]} 24. dxc4
{[%clk 0:01:56.1]} 24... axb4 {[%clk 0:02:17.2]} 25. Rad1 {[%clk 0:01:56.3]}
25... Re7 {[%clk 0:02:12.7]} 26. f4 {[%clk 0:01:47.8]} 26... e4 {[%clk
0:02:03.9]} 27. Kf2 {[%clk 0:01:47.3]} 27... Kf7 {[%clk 0:02:03.6]} 28. Rd6
{[%clk 0:01:47.3]} 28... Re6 {[%clk 0:01:28.7]} 29. Rd7+ {[%clk 0:01:47.2]}
29... Re7 {[%clk 0:01:29.1]} 30. Red1 {[%clk 0:01:47.2]} 30... Re8 {[%clk
0:01:14.8]} 31. Ke3 {[%clk 0:01:39.2]} 31... Rxd7 {[%clk 0:01:15.1]} 32. Rxd7+
{[%clk 0:01:39]} 32... Re7 {[%clk 0:01:16]} 33. Rd8 {[%clk 0:01:22.9]} 33... Ke6
{[%clk 0:01:10.4]} 34. c5 {[%clk 0:01:12.3]} 34... Rd7 {[%clk 0:01:10.4]} 35.
Rxd7 {[%clk 0:01:11.7]} 35... Kxd7 {[%clk 0:01:10.6]} 36. Kd4 {[%clk 0:01:12.6]}
36... Kc7 {[%clk 0:01:10.8]} 37. Kc4 {[%clk 0:01:11.5]} 37... h5 {[%clk
0:01:09.5]} 38. Kxb4 {[%clk 0:01:08.5]} 38... Kb8 {[%clk 0:01:08.9]} 39. Kc4
{[%clk 0:01:08.3]} 39... Ka7 {[%clk 0:01:08.9]} 40. Kd4 {[%clk 0:01:07.9]} 40...
g6 {[%clk 0:01:09.3]} 41. b4 {[%clk 0:01:06.8]} 41... Kb8 {[%clk 0:01:07.8]} 42.
Ke3 {[%clk 0:00:45.6]} 42... Ka7 {[%clk 0:01:07.7]} 43. c4 {[%clk 0:00:41.8]}
43... Kb8 {[%clk 0:01:07.8]} 44. b5 {[%clk 0:00:41.7]} 44... Ka7 {[%clk
0:01:08.3]} 45. a5 {[%clk 0:00:41.6]} 45... Kb8 {[%clk 0:01:08.7]} 46. Kd4
{[%clk 0:00:38.8]} 46... Ka7 {[%clk 0:01:08.9]} 47. Kc3 {[%clk 0:00:36.1]} 47...
Kb8 {[%clk 0:01:09]} 48. Kc2 {[%clk 0:00:36.5]} 48... Ka7 {[%clk 0:01:09.3]} 49.
Kc1 {[%clk 0:00:37.1]} 49... Kb8 {[%clk 0:01:09.8]} 50. Kd1 {[%clk 0:00:37.3]}
50... Ka7 {[%clk 0:01:10.4]} 51. Ke1 {[%clk 0:00:33.7]} 51... Kb8 {[%clk
0:01:10.9]} 52. Kf2 {[%clk 0:00:33.9]} 52... Ka7 {[%clk 0:01:11.3]} 53. Ke3
{[%clk 0:00:34.1]} 53... Kb8 {[%clk 0:01:11.7]} 54. h3 {[%clk 0:00:33.7]} 54...
Ka7 {[%clk 0:01:11.9]} 55. g4 {[%clk 0:00:17.2]} 55... Kb8 {[%clk 0:01:11.7]}
56. gxh5 {[%clk 0:00:16.2]} 56... gxh5 {[%clk 0:01:11.5]} 57. h4 {[%clk
0:00:16.6]} 57... Ka7 {[%clk 0:01:12.1]} 1/2-1/2

[Event "Late-Titled-Tuesday-Blitz-April-16-2024"]
[Site "Chess.com"]
[Date "2024.04.16"]
[Round "10"]
[White "Caterpiller35"]
[Black "only_strong_moves"]
[Result "1-0"]
[WhiteElo "2503"]
[BlackElo "2647"]
[TimeControl "180+1"]
[EndTime "15:53:54 PDT"]
[Termination "Caterpiller35 won by resignation"]

1. d4 {[%clk 0:03:00]} 1... Nf6 {[%clk 0:03:00]} 2. Bg5 {[%clk 0:02:59.8]} 2...
c5 {[%clk 0:02:59.3]} 3. d5 {[%clk 0:02:59.8]} 3... Ne4 {[%clk 0:02:59.8]} 4.
Bc1 {[%clk 0:02:58.9]} 4... e6 {[%clk 0:02:58.2]} 5. c4 {[%clk 0:02:58.2]} 5...
Qf6 {[%clk 0:02:39.9]} 6. Nf3 {[%clk 0:02:57.9]} 6... Na6 {[%clk 0:02:26.6]} 7.
e3 {[%clk 0:02:53.5]} 7... Be7 {[%clk 0:02:15.9]} 8. Bd3 {[%clk 0:02:52.9]} 8...
Nd6 {[%clk 0:02:16.5]} 9. Nc3 {[%clk 0:02:49.7]} 9... Nc7 {[%clk 0:02:14.5]} 10.
e4 {[%clk 0:02:49.1]} 10... e5 {[%clk 0:02:07.1]} 11. Bg5 {[%clk 0:02:43.3]}
11... Qg6 {[%clk 0:02:06.8]} 12. Bxe7 {[%clk 0:02:43.3]} 12... Kxe7 {[%clk
0:02:07.7]} 13. O-O {[%clk 0:02:31.5]} 13... f6 {[%clk 0:02:07.4]} 14. a3 {[%clk
0:02:31.6]} 14... Rf8 {[%clk 0:02:04.2]} 15. b4 {[%clk 0:02:31.4]} 15... Na6
{[%clk 0:02:01.4]} 16. Nb5 {[%clk 0:02:26.2]} 16... cxb4 {[%clk 0:01:39.9]} 17.
Nxd6 {[%clk 0:02:24.7]} 17... Kxd6 {[%clk 0:01:40.8]} 18. Nh4 {[%clk 0:01:59.5]}
18... Qf7 {[%clk 0:01:34.4]} 19. axb4 {[%clk 0:01:58.8]} 19... Nxb4 {[%clk
0:01:31.3]} 20. Nf5+ {[%clk 0:01:56.4]} 20... Kc7 {[%clk 0:01:30.8]} 21. c5
{[%clk 0:01:56.4]} 21... g6 {[%clk 0:01:03.7]} 22. Nd6 {[%clk 0:01:54.1]} 22...
Qe7 {[%clk 0:01:03.9]} 23. Qb3 {[%clk 0:01:42.4]} 23... Nxd3 {[%clk 0:01:03.2]}
24. Qxd3 {[%clk 0:01:43.3]} 24... Kd8 {[%clk 0:00:57.4]} 25. Rfb1 {[%clk
0:01:34.5]} 25... b6 {[%clk 0:00:54.7]} 26. Nxc8 {[%clk 0:01:15.2]} 26... Rxc8
{[%clk 0:00:53.1]} 27. cxb6 {[%clk 0:01:15.1]} 27... axb6 {[%clk 0:00:54]} 28.
Rxb6 {[%clk 0:01:14.7]} 28... Qc5 {[%clk 0:00:53.6]} 29. Rbb1 {[%clk 0:01:10.6]}
29... Ke7 {[%clk 0:00:50.9]} 30. g3 {[%clk 0:01:06.3]} 30... Rc7 {[%clk
0:00:49.3]} 31. Kg2 {[%clk 0:01:04.8]} 31... d6 {[%clk 0:00:48.8]} 32. Ra6
{[%clk 0:01:01.8]} 32... Rfc8 {[%clk 0:00:44.6]} 33. Rbb6 {[%clk 0:01:00.6]}
33... Rd7 {[%clk 0:00:39.7]} 34. Rc6 {[%clk 0:01:00.6]} 34... Rxc6 {[%clk
0:00:38]} 35. Rxc6 {[%clk 0:01:01.5]} 35... Qb4 {[%clk 0:00:36.4]} 36. h4 {[%clk
0:01:01.2]} 36... Ra7 {[%clk 0:00:34.8]} 37. Qe3 {[%clk 0:01:00.8]} 37... Ra4
{[%clk 0:00:33.1]} 38. Rc7+ {[%clk 0:00:59.7]} 38... Kd8 {[%clk 0:00:33.1]} 39.
Rxh7 {[%clk 0:00:54]} 39... Qxe4+ {[%clk 0:00:33.6]} 40. Qxe4 {[%clk 0:00:54.2]}
40... Rxe4 {[%clk 0:00:34.5]} 41. Rf7 {[%clk 0:00:53]} 41... f5 {[%clk 0:00:31]}
42. Rf6 {[%clk 0:00:53.2]} 42... Kd7 {[%clk 0:00:31.5]} 43. Rxg6 {[%clk
0:00:53.5]} 43... Rd4 {[%clk 0:00:32.2]} 44. h5 {[%clk 0:00:53.8]} 44... Ra4
{[%clk 0:00:25.4]} 45. h6 {[%clk 0:00:54]} 45... Ra8 {[%clk 0:00:26.1]} 46. h7
{[%clk 0:00:54.3]} 46... Rh8 {[%clk 0:00:26.8]} 47. Rg7+ {[%clk 0:00:54.7]}
47... Ke8 {[%clk 0:00:27.5]} 1-0

[Event "Late-Titled-Tuesday-Blitz-April-16-2024"]
[Site "Chess.com"]
[Date "2024.04.16"]
[Round "10"]
[White "ameetghasi100"]
[Black "RuperezA"]
[Result "1-0"]
[WhiteElo "2798"]
[BlackElo "2618"]
[TimeControl "180+1"]
[EndTime "15:53:57 PDT"]
[Termination "ameetghasi100 won by resignation"]

1. Nf3 {[%clk 0:03:00.1]} 1... e6 {[%clk 0:03:00.9]} 2. d3 {[%clk 0:03:01]} 2...
Nf6 {[%clk 0:02:59.5]} 3. Nc3 {[%clk 0:03:00.5]} 3... d5 {[%clk 0:02:59.5]} 4.
g3 {[%clk 0:03:00.8]} 4... c5 {[%clk 0:02:58.9]} 5. Bg2 {[%clk 0:03:01.3]} 5...
Nc6 {[%clk 0:02:59.4]} 6. O-O {[%clk 0:03:01.8]} 6... Be7 {[%clk 0:02:59.5]} 7.
Nd2 {[%clk 0:03:02]} 7... O-O {[%clk 0:02:58.8]} 8. e4 {[%clk 0:03:02]} 8... b6
{[%clk 0:02:59.4]} 9. exd5 {[%clk 0:02:59.8]} 9... exd5 {[%clk 0:02:58.6]} 10.
Nb3 {[%clk 0:03:00.3]} 10... Bg4 {[%clk 0:02:57.3]} 11. Qe1 {[%clk 0:02:55.6]}
11... Re8 {[%clk 0:02:54.7]} 12. Bg5 {[%clk 0:02:55.7]} 12... h6 {[%clk
0:02:52.7]} 13. Bxf6 {[%clk 0:02:55]} 13... Bxf6 {[%clk 0:02:53.6]} 14. Qd2
{[%clk 0:02:55.4]} 14... Bg5 {[%clk 0:02:36.1]} 15. f4 {[%clk 0:02:54.4]} 15...
Bf6 {[%clk 0:02:36.6]} 16. Nxd5 {[%clk 0:02:28.6]} 16... Bxb2 {[%clk 0:02:24.8]}
17. Rae1 {[%clk 0:02:26.5]} 17... Rc8 {[%clk 0:01:56.5]} 18. c3 {[%clk 0:02:11]}
18... Be6 {[%clk 0:01:53.9]} 19. Ne3 {[%clk 0:01:53.2]} 19... c4 {[%clk
0:01:47]} 20. Qxb2 {[%clk 0:01:42.4]} 20... cxb3 {[%clk 0:01:47.2]} 21. d4
{[%clk 0:01:43]} 21... Na5 {[%clk 0:01:23]} 22. d5 {[%clk 0:01:40.3]} 22... Bd7
{[%clk 0:01:23.6]} 23. axb3 {[%clk 0:01:39.1]} 23... Qf6 {[%clk 0:01:21.8]} 24.
Nd1 {[%clk 0:01:36.1]} 24... Bg4 {[%clk 0:01:08.5]} 25. Nf2 {[%clk 0:01:31.2]}
25... Bf5 {[%clk 0:00:53.2]} 26. Rxe8+ {[%clk 0:01:19.8]} 26... Rxe8 {[%clk
0:00:52.6]} 27. Rd1 {[%clk 0:01:20.2]} 27... Re3 {[%clk 0:00:48.5]} 28. d6
{[%clk 0:01:17.7]} 28... Rxc3 {[%clk 0:00:18.3]} 29. d7 {[%clk 0:01:10.9]} 29...
Bxd7 {[%clk 0:00:18.9]} 30. Rxd7 {[%clk 0:01:10.8]} 30... Nxb3 {[%clk
0:00:19.7]} 31. Nd1 {[%clk 0:00:59.6]} 31... Rc1 {[%clk 0:00:09.8]} 32. Qxb3
{[%clk 0:00:57.2]} 32... a5 {[%clk 0:00:09.1]} 33. Qe3 {[%clk 0:00:41.3]} 33...
Qa1 {[%clk 0:00:05.9]} 34. Qe8+ {[%clk 0:00:39.5]} 34... Kh7 {[%clk 0:00:06.4]}
35. Be4+ {[%clk 0:00:39.5]} 1-0

[Event "Late-Titled-Tuesday-Blitz-April-16-2024"]
[Site "Chess.com"]
[Date "2024.04.16"]
[Round "10"]
[White "Polish_fighter3000"]
[Black "CarlosjPineror"]
[Result "1-0"]
[WhiteElo "3095"]
[BlackElo "2708"]
[TimeControl "180+1"]
[EndTime "15:53:59 PDT"]
[Termination "Polish_fighter3000 won by resignation"]

1. c4 {[%clk 0:02:52.9]} 1... Nf6 {[%clk 0:02:59.6]} 2. Nc3 {[%clk 0:02:52.7]}
2... g6 {[%clk 0:02:59]} 3. d4 {[%clk 0:02:52.5]} 3... Bg7 {[%clk 0:02:58.1]} 4.
e4 {[%clk 0:02:52.3]} 4... d6 {[%clk 0:02:58.8]} 5. h4 {[%clk 0:02:47.7]} 5...
c5 {[%clk 0:02:56.6]} 6. d5 {[%clk 0:02:45.8]} 6... b5 {[%clk 0:02:55.1]} 7.
cxb5 {[%clk 0:02:45.3]} 7... a6 {[%clk 0:02:55.8]} 8. Nf3 {[%clk 0:02:41]} 8...
Nbd7 {[%clk 0:02:54.3]} 9. a4 {[%clk 0:02:38.9]} 9... O-O {[%clk 0:02:53.3]} 10.
Ra3 {[%clk 0:02:37.6]} 10... axb5 {[%clk 0:02:04.1]} 11. Bxb5 {[%clk 0:02:38.5]}
11... Ba6 {[%clk 0:02:03.9]} 12. Bxa6 {[%clk 0:01:50.6]} 12... Rxa6 {[%clk
0:02:04.8]} 13. Qe2 {[%clk 0:01:47.6]} 13... Ra8 {[%clk 0:02:02.8]} 14. O-O
{[%clk 0:01:46.3]} 14... Ng4 {[%clk 0:02:02.3]} 15. h5 {[%clk 0:01:42.1]} 15...
Qb6 {[%clk 0:01:43.3]} 16. hxg6 {[%clk 0:01:40.7]} 16... hxg6 {[%clk 0:01:41.1]}
17. Ng5 {[%clk 0:01:33]} 17... Ngf6 {[%clk 0:01:37.3]} 18. Nb5 {[%clk
0:01:15.4]} 18... Ne8 {[%clk 0:01:28.6]} 19. Qg4 {[%clk 0:01:10.1]} 19... Ndf6
{[%clk 0:01:25.1]} 20. Qh4 {[%clk 0:01:09.9]} 20... Nc7 {[%clk 0:01:17]} 21. Rf3
{[%clk 0:00:51]} 21... Rfb8 {[%clk 0:01:03.1]} 22. e5 {[%clk 0:00:49.9]} 22...
dxe5 {[%clk 0:00:59.7]} 23. d6 {[%clk 0:00:50.1]} 23... Rxa4 {[%clk 0:00:43.2]}
24. Qxa4 {[%clk 0:00:48.2]} 24... Nxb5 {[%clk 0:00:42.6]} 25. dxe7 {[%clk
0:00:47.2]} 25... Nd6 {[%clk 0:00:33.9]} 26. Rd1 {[%clk 0:00:39.9]} 26... Qc7
{[%clk 0:00:28.3]} 27. Rxd6 {[%clk 0:00:31.6]} 27... Qxd6 {[%clk 0:00:24.8]} 28.
Rxf6 {[%clk 0:00:31.6]} 28... Qxf6 {[%clk 0:00:20.6]} 29. e8=Q+ {[%clk
0:00:30.8]} 29... Rxe8 {[%clk 0:00:21.5]} 30. Qxe8+ {[%clk 0:00:30.6]} 30... Bf8
{[%clk 0:00:22.4]} 31. Qxf8+ {[%clk 0:00:30.5]} 31... Kxf8 {[%clk 0:00:20.8]}
32. Nh7+ {[%clk 0:00:31.4]} 32... Ke7 {[%clk 0:00:21.7]} 33. Nxf6 {[%clk
0:00:29.4]} 33... Kxf6 {[%clk 0:00:22.6]} 34. g4 {[%clk 0:00:25]} 34... Ke6
{[%clk 0:00:22.1]} 35. g5 {[%clk 0:00:24.5]} 35... f5 {[%clk 0:00:22.2]} 36.
gxf6 {[%clk 0:00:23.9]} 36... Kf5 {[%clk 0:00:22.5]} 37. f7 {[%clk 0:00:23.6]}
1-0

[Event "Late-Titled-Tuesday-Blitz-April-16-2024"]
[Site "Chess.com"]
[Date "2024.04.16"]
[Round "10"]
[White "h4parah5"]
[Black "Szparu"]
[Result "1-0"]
[WhiteElo "3035"]
[BlackElo "2895"]
[TimeControl "180+1"]
[EndTime "15:54:00 PDT"]
[Termination "h4parah5 won by checkmate"]

1. Nf3 {[%clk 0:03:00.9]} 1... d5 {[%clk 0:03:00]} 2. e3 {[%clk 0:03:00.9]} 2...
c5 {[%clk 0:02:59.8]} 3. d4 {[%clk 0:02:59.8]} 3... Nf6 {[%clk 0:02:59.6]} 4.
Bb5+ {[%clk 0:02:59.1]} 4... Bd7 {[%clk 0:02:58.7]} 5. Be2 {[%clk 0:02:59.7]}
5... cxd4 {[%clk 0:02:54]} 6. exd4 {[%clk 0:03:00.6]} 6... Nc6 {[%clk
0:02:52.5]} 7. c3 {[%clk 0:03:00.6]} 7... e6 {[%clk 0:02:46]} 8. Bf4 {[%clk
0:02:58.6]} 8... Nh5 {[%clk 0:02:43.8]} 9. Bg5 {[%clk 0:02:55]} 9... Qc7 {[%clk
0:02:41.8]} 10. g3 {[%clk 0:02:52.1]} 10... h6 {[%clk 0:02:38.1]} 11. Be3 {[%clk
0:02:50.2]} 11... Bd6 {[%clk 0:02:35.2]} 12. Ne5 {[%clk 0:02:48.2]} 12... Nf6
{[%clk 0:02:35.2]} 13. Nxd7 {[%clk 0:02:48]} 13... Qxd7 {[%clk 0:02:23.6]} 14.
Nd2 {[%clk 0:02:47.5]} 14... Rb8 {[%clk 0:02:14.9]} 15. a4 {[%clk 0:02:47.2]}
15... O-O {[%clk 0:02:07]} 16. O-O {[%clk 0:02:46.8]} 16... Ne7 {[%clk
0:02:05.8]} 17. Bd3 {[%clk 0:02:40.2]} 17... Nf5 {[%clk 0:02:01.9]} 18. Bxf5
{[%clk 0:02:20.5]} 18... exf5 {[%clk 0:02:02.8]} 19. Qf3 {[%clk 0:02:20.9]}
19... Rfe8 {[%clk 0:01:54.6]} 20. Nb3 {[%clk 0:02:09.9]} 20... Ne4 {[%clk
0:01:52.6]} 21. Nc1 {[%clk 0:02:05.3]} 21... b5 {[%clk 0:00:49.3]} 22. axb5
{[%clk 0:01:59.1]} 22... Rxb5 {[%clk 0:00:49.7]} 23. Nd3 {[%clk 0:01:58.1]}
23... a5 {[%clk 0:00:50]} 24. Bf4 {[%clk 0:01:56.7]} 24... Bf8 {[%clk
0:00:46.9]} 25. Rfe1 {[%clk 0:01:54.9]} 25... Re6 {[%clk 0:00:40.6]} 26. h4
{[%clk 0:01:53]} 26... Reb6 {[%clk 0:00:33]} 27. h5 {[%clk 0:01:50.5]} 27... Re6
{[%clk 0:00:20.3]} 28. Kg2 {[%clk 0:01:49.1]} 28... Reb6 {[%clk 0:00:20.1]} 29.
Be5 {[%clk 0:01:43.2]} 29... Rb7 {[%clk 0:00:17.1]} 30. Qd1 {[%clk 0:01:39.8]}
30... Rxb2 {[%clk 0:00:14.2]} 31. Nxb2 {[%clk 0:01:31.4]} 31... Rxb2 {[%clk
0:00:15.1]} 32. Rf1 {[%clk 0:01:31.3]} 32... Qb5 {[%clk 0:00:14.9]} 33. Rb1
{[%clk 0:01:29.4]} 33... Nxc3 {[%clk 0:00:13.5]} 34. Rxb2 {[%clk 0:01:29]} 34...
Qxb2 {[%clk 0:00:14.4]} 35. Qa1 {[%clk 0:01:26.3]} 35... Ba3 {[%clk 0:00:10.3]}
36. Qe1 {[%clk 0:01:15.3]} 36... Bb4 {[%clk 0:00:09.4]} 37. Qe3 {[%clk
0:01:10.8]} 37... a4 {[%clk 0:00:07.1]} 38. Qd3 {[%clk 0:01:10.4]} 38... Ne4
{[%clk 0:00:05.1]} 39. Qb5 {[%clk 0:01:07.4]} 39... a3 {[%clk 0:00:02.8]} 40.
Qxd5 {[%clk 0:00:58.4]} 40... a2 {[%clk 0:00:02.6]} 41. Qa8+ {[%clk 0:00:55.1]}
41... Kh7 {[%clk 0:00:02.7]} 42. Qc8 {[%clk 0:00:53.8]} 42... g6 {[%clk
0:00:02.9]} 43. Qh8# {[%clk 0:00:52.8]} 1-0